fUSD/lending_fUSD_20241118
["ID","MTS","AMOUNT","RATE_DAILY","PERIOD"]
[342491384,1731923431628,-4113.51957495,9.791e-05,2]
[342491385,1731923431637,-150.0,9.799e-05,2]
[342491386,1731923431647,-11757.5996,9.8e-05,2]
[342491387,1731923431656,-500.53756891,9.873e-05,2]
[342491388,1731923431666,-500.0,9.873e-05,2]
[342491389,1731923431675,-500.0,9.873e-05,2]
[342491391,1731923431685,-1877.2667,9.885e-05,2]
[342491392,1731923431695,-560.0,9.891e-05,2]
[342491393,1731923431704,-500.0,9.891e-05,2]
[342491394,1731923431713,-500.0,9.891e-05,2]
[342491395,1731923431722,-500.0,9.891e-05,2]
[342491396,1731923431731,-500.0,9.891e-05,2]
[342491397,1731923431740,-500.0,9.891e-05,2]
[342491398,1731923431749,-500.0,9.891e-05,2]
[342491399,1731923431758,-500.0,9.891e-05,2]
[342491400,1731923431767,-500.0,9.891e-05,2]
[342491401,1731923431776,-500.0,9.891e-05,2]
[342491402,1731923431785,-500.0,9.891e-05,2]
[342491403,1731923431794,-500.0,9.891e-05,2]
[342491404,1731923431803,-500.0,9.891e-05,2]
[342491405,1731923431812,-500.0,9.891e-05,2]
[342491406,1731923431822,-500.0,9.891e-05,2]
[342491407,1731923431831,-500.0,9.891e-05,2]
[342491408,1731923431840,-500.0,9.891e-05,2]
[342491409,1731923431851,-500.0,9.899e-05,2]
[342491410,1731923431861,-500.0,9.899e-05,2]
[342491411,1731923431870,-500.0,9.899e-05,2]
[342491412,1731923431880,-500.0,9.899e-05,2]
[342491413,1731923431889,-500.0,9.899e-05,2]
[342491415,1731923431899,-229.09,9.899e-05,2]
[342491417,1731923431909,-500.0,9.899e-05,2]
[342491419,1731923431919,-500.0,9.899e-05,2]
[342491420,1731923431928,-500.0,9.899e-05,2]
[342491422,1731923431937,-500.0,9.899e-05,2]
[342491424,1731923431947,-500.0,9.899e-05,2]
[342491426,1731923431956,-500.0,9.899e-05,2]
[342491427,1731923431966,-500.0,9.899e-05,2]
[342491428,1731923431975,-500.0,9.899e-05,2]
[342491429,1731923431984,-500.0,9.899e-05,2]
[342491430,1731923431994,-500.0,9.899e-05,2]
[342491431,1731923432003,-500.0,9.899e-05,2]
[342491432,1731923432013,-500.0,9.899e-05,2]
[342491433,1731923432023,-500.0,9.899e-05,2]
[342491435,1731923432032,-500.0,9.899e-05,2]
[342491436,1731923432040,-500.0,9.899e-05,2]
[342491437,1731923432050,-500.0,9.899e-05,2]
[342491438,1731923432059,-500.0,9.899e-05,2]
[342491439,1731923432068,-500.0,9.899e-05,2]
[342491440,1731923432078,-539.99,9.899e-05,2]
[342491441,1731923432087,-500.0,9.899e-05,2]
[342491442,1731923432099,-508.25,9.899e-05,2]
[342491443,1731923432115,-500.0,9.899e-05,2]
[342491444,1731923432124,-500.0,9.899e-05,2]
[342491445,1731923432134,-627.79,9.899e-05,2]
[342491446,1731923432143,-595.76,9.899e-05,2]
[342491447,1731923432153,-500.0,9.899e-05,2]
[342491448,1731923432164,-500.0,9.899e-05,2]
[342491449,1731923432173,-500.0,9.899e-05,2]
[342491450,1731923432184,-500.0,9.899e-05,2]
[342491451,1731923432194,-1000.0,9.899e-05,2]
[342491452,1731923432204,-500.0,9.899e-05,2]
[342491453,1731923432214,-500.0,9.899e-05,2]
[342491454,1731923432223,-500.0,9.899e-05,2]
[342491455,1731923432233,-500.0,9.899e-05,2]
[342491456,1731923432243,-500.0,9.899e-05,2]
[342491457,1731923432252,-500.0,9.899e-05,2]
[342491458,1731923432263,-500.0,9.899e-05,2]
[342491459,1731923432272,-500.0,9.899e-05,2]
[342491460,1731923432281,-500.0,9.899e-05,2]
[342491461,1731923432290,-500.0,9.899e-05,2]
[342491462,1731923432299,-500.0,9.899e-05,2]
[342491463,1731923432310,-500.0,9.899e-05,2]
[342491464,1731923432319,-500.0,9.899e-05,2]
[342491465,1731923432328,-500.0,9.899e-05,2]
[342491466,1731923432338,-500.0,9.899e-05,2]
[342491467,1731923432349,-502.79185208,9.899e-05,2]
[342491468,1731923432358,-500.0,9.899e-05,2]
[342491469,1731923432368,-500.0,9.899e-05,2]
[342491470,1731923432377,-500.0,9.899e-05,2]
[342491471,1731923432386,-500.0,9.899e-05,2]
[342491472,1731923432396,-500.0,9.899e-05,2]
[342491473,1731923432406,-500.0,9.899e-05,2]
[342491474,1731923432415,-500.0,9.899e-05,2]
[342491475,1731923432425,-500.0,9.899e-05,2]
[342491476,1731923432439,-500.0,9.899e-05,2]
[342491477,1731923432448,-500.0,9.899e-05,2]
[342491478,1731923432458,-500.0,9.899e-05,2]
[342491479,1731923432467,-502.61909013,9.899e-05,2]
[342491480,1731923432477,-500.0,9.899e-05,2]
[342491481,1731923432487,-500.0,9.899e-05,2]
[342491482,1731923432496,-564.71,9.899e-05,2]
[342491483,1731923432507,-500.0,9.899e-05,2]
[342491484,1731923432516,-500.0,9.899e-05,2]
[342491485,1731923432525,-500.0,9.899e-05,2]
[342491486,1731923432535,-500.0,9.899e-05,2]
[342491487,1731923432544,-500.0,9.899e-05,2]
[342491488,1731923432553,-500.0,9.899e-05,2]
[342491489,1731923432563,-500.0,9.899e-05,2]
[342491490,1731923432577,-500.0,9.899e-05,2]
[342491491,1731923432586,-500.0,9.899e-05,2]
[342491492,1731923432595,-500.0,9.899e-05,2]
[342491493,1731923432606,-457.01739321,9.899e-05,2]
[342491494,1731923432616,-500.0,9.899e-05,2]
[342491495,1731923432626,-595.18,9.899e-05,2]
[342491496,1731923432635,-500.0,9.899e-05,2]
[342491497,1731923432644,-500.0,9.899e-05,2]
[342491498,1731923432653,-500.0,9.899e-05,2]
[342491499,1731923432663,-500.0,9.899e-05,2]
[342491500,1731923432672,-500.0,9.899e-05,2]
[342491501,1731923432681,-500.0,9.899e-05,2]
[342491502,1731923432691,-500.0,9.899e-05,2]
[342491503,1731923432700,-500.0,9.899e-05,2]
[342491504,1731923432709,-500.0,9.899e-05,2]
[342491505,1731923432718,-500.0,9.899e-05,2]
[342491506,1731923432727,-500.0,9.899e-05,2]
[342491507,1731923432736,-500.0,9.899e-05,2]
[342491508,1731923432746,-500.0,9.899e-05,2]
[342491509,1731923432755,-500.0,9.899e-05,2]
[342491510,1731923432763,-500.0,9.899e-05,2]
[342491511,1731923432773,-500.0,9.899e-05,2]
[342491512,1731923432782,-500.0,9.899e-05,2]
[342491513,1731923432791,-500.0,9.899e-05,2]
[342491514,1731923432800,-500.0,9.899e-05,2]
[342491515,1731923432810,-500.0,9.899e-05,2]
[342491516,1731923432819,-500.0,9.899e-05,2]
[342491517,1731923432829,-500.0,9.899e-05,2]
[342491518,1731923432838,-500.0,9.899e-05,2]
[342491519,1731923432848,-580.02,9.899e-05,2]
[342491520,1731923432857,-500.0,9.899e-05,2]
[342491521,1731923432868,-500.0,9.899e-05,2]
[342491522,1731923432879,-363.08070297,9.899e-05,2]
[342491523,1731923432890,-649.89,9.899e-05,2]
[342491524,1731923432899,-500.0,9.899e-05,2]
[342491525,1731923432909,-500.0,9.899e-05,2]
[342491526,1731923432919,-500.0,9.899e-05,2]
[342491527,1731923432928,-500.0,9.899e-05,2]
[342491528,1731923432938,-500.0,9.899e-05,2]
[342491529,1731923432948,-602.98,9.899e-05,2]
[342491530,1731923432959,-500.0,9.899e-05,2]
[342491531,1731923432968,-500.0,9.899e-05,2]
[342491532,1731923432978,-500.0,9.899e-05,2]
[342491533,1731923432988,-500.0,9.899e-05,2]
[342491534,1731923432997,-646.07,9.899e-05,2]
[342491535,1731923433006,-500.0,9.899e-05,2]
[342491536,1731923433016,-16169.37387348,9.9e-05,2]
[342491537,1731923433028,-78369.74251302,9.9e-05,2]
[342491538,1731923433042,-657.4833942,9.9e-05,2]
[342491539,1731923433154,-1841.8711313,9.9e-05,2]
[342491540,1731923433166,-1224.0,9.9e-05,2]
[342491541,1731923433177,-10519.06,9.9e-05,2]
[342491542,1731923433189,-6753.41758078,9.9e-05,2]
[342491543,1731923433210,-1794.848539,9.9e-05,2]
[342491544,1731923437498,-420.89159731,9.899e-05,2]
[342491545,1731923437591,-79.10840269,9.899e-05,2]
[342491546,1731923437602,-3739.82385767,9.9e-05,2]
[342491547,1731923437614,-5567.53978971,9.9e-05,2]
[342491548,1731923437625,-1817.98481065,9.9e-05,2]
[342491549,1731923437638,-19520.92713327,9.9e-05,2]
[342491550,1731923437649,-15613.1064871,9.9e-05,2]
[342491551,1731923437661,-3692.2557,9.9e-05,2]
[342491552,1731923437673,-26999.48982,9.9e-05,2]
[342491553,1731923437689,-253.7732008,9.9e-05,2]
[342491562,1731923439458,-929.15201435,9.9e-05,2]
[342491563,1731923439471,-1346.25405881,9.9e-05,2]
[342491564,1731923439482,-606.199999,9.9e-05,2]
[342491565,1731923439494,-383.78651,9.9e-05,2]
[342491566,1731923439505,-275.7755006,9.9e-05,2]
[342491567,1731923439518,-951.21751417,9.9e-05,2]
[342491568,1731923439534,-12964.25954557,9.9e-05,2]
[342491569,1731923439543,-27860.6249,9.9e-05,2]
[342491570,1731923439552,-600.0,9.936e-05,2]
[342491571,1731923439561,-600.0,9.936e-05,2]
[342491572,1731923439570,-2385.51001623,9.953e-05,2]
[342491573,1731923439579,-23675.56470712,9.953e-05,2]
[342491574,1731923439588,-1590.34001087,9.953e-05,2]
[342491575,1731923439597,-329.59421798,9.953e-05,2]
[342491576,1731923439612,-2385.51001623,9.955e-05,2]
[342491577,1731923439621,-4900.92090242,9.956e-05,2]
[342491578,1731923439631,-1327.17151255,9.956e-05,2]
[342491579,1731923439640,-3639.40443943,9.958e-05,2]
[342491580,1731923439651,-888.43578756,9.958e-05,2]
[342491581,1731923439674,-373.08067543,9.958e-05,2]
[342491582,1731923439683,-856.89017454,9.959e-05,2]
[342491583,1731923439695,-470.28133801,9.959e-05,2]
[342491584,1731923439705,-448.08866199,9.96e-05,2]
[342491585,1731923439717,-23227.47604513,9.96e-05,2]
[342491586,1731923439727,-5480.64422535,9.961e-05,2]
[342491587,1731923439736,-248.72307768,9.97e-05,2]
[342491588,1731923439746,-4900.92090242,9.97e-05,2]
[342491589,1731923439755,-1590.34001087,9.971e-05,2]
[342491590,1731923439765,-1327.17151255,9.971e-05,2]
[342491591,1731923439774,-2385.51001623,9.971e-05,2]
[342491592,1731923439783,-248.72307768,9.972e-05,2]
[342491593,1731923439792,-329.59421798,9.976e-05,2]
[342491594,1731923439801,-248.72307768,9.976e-05,2]
[342491595,1731923439810,-329.59421798,9.976e-05,2]
[342491596,1731923439819,-329.59421798,9.976e-05,2]
[342491597,1731923439828,-1590.34001087,9.977e-05,2]
[342491598,1731923439838,-1590.34001087,9.979e-05,2]
[342491599,1731923439847,-248.72307768,9.98e-05,2]
[342491600,1731923439859,-4900.92090242,9.98e-05,2]
[342491602,1731923439868,-1327.17151255,9.981e-05,2]
[342491603,1731923439878,-5480.64422535,9.982e-05,2]
[342491604,1731923439887,-696.509,9.982e-05,2]
[342491605,1731923439896,-329.59421798,9.983e-05,2]
[342491606,1731923439905,-2385.51001623,9.983e-05,2]
[342491607,1731923439915,-1327.17151255,9.984e-05,2]
[342491608,1731923439925,-248.72307768,9.985e-05,2]
[342491609,1731923439934,-6976.03516161,9.985e-05,2]
[342491610,1731923439952,-6301.9999045,9.985e-05,2]
[342491611,1731923439965,-690.82000001,9.985e-05,2]
[342491612,1731923439976,-400.07483383,9.985e-05,2]
[342491613,1731923439986,-428.79321821,9.985e-05,2]
[342491614,1731923439997,-4715.68916619,9.985e-05,2]
[342491618,1731923442419,-1783.98116485,9.985e-05,2]
[342491619,1731923442580,-2378.17125792,9.985e-05,2]
[342491620,1731923442591,-227.18,9.988e-05,2]
[342491621,1731923442600,-354.18,9.988e-05,2]
[342491622,1731923442610,-500.0,9.988e-05,2]
[342491623,1731923442619,-316.55,9.988e-05,2]
[342491624,1731923442628,-442.8697597,9.988e-05,2]
[342491625,1731923442639,-57.1302403,9.988e-05,2]
[342491626,1731923442648,-500.0,9.988e-05,2]
[342491627,1731923442657,-500.0,9.988e-05,2]
[342491628,1731923442665,-562.689,9.989e-05,2]
[342491629,1731923442674,-628.0,9.989e-05,2]
[342491630,1731923442683,-446.332,9.989e-05,2]
[342491631,1731923442692,-694.36611492,9.989e-05,2]
[342491632,1731923442704,-573.77588508,9.989e-05,2]
[342491633,1731923442713,-150.0,9.989e-05,2]
[342491634,1731923442722,-248.7,9.989e-05,2]
[342491635,1731923442730,-152.796,9.989e-05,2]
[342491636,1731923442739,-1590.34001087,9.99e-05,2]
[342491637,1731923442749,-164.24996253,9.99e-05,2]
[342491638,1731923442758,-612.43,9.991e-05,2]
[342491639,1731923442767,-500.0,9.991e-05,2]
[342491640,1731923442776,-500.0,9.991e-05,2]
[342491641,1731923442785,-515.68033997,9.993e-05,2]
[342491642,1731923442796,-4964.96388538,9.993e-05,2]
[342491644,1731923442805,-1419.90595886,9.994e-05,2]
[342491646,1731923442817,-3481.01494356,9.994e-05,2]
[342491649,1731923442826,-580.04,9.995e-05,2]
[342491652,1731923442836,-508.68,9.996e-05,2]
[342491653,1731923442845,-371.94408724,9.996e-05,2]
[342491654,1731923442856,-128.05591276,9.996e-05,2]
[342491655,1731923442870,-479.53,9.996e-05,2]
[342491656,1731923442879,-500.0,9.996e-05,2]
[342491657,1731923442888,-229.09,9.996e-05,2]
[342491658,1731923442898,-240.71,9.996e-05,2]
[342491659,1731923442907,-500.0,9.996e-05,2]
[342491660,1731923442916,-500.0,9.996e-05,2]
[342491661,1731923442924,-254.60613724,9.996e-05,2]
[342491662,1731923442935,-297.20386276,9.996e-05,2]
[342491663,1731923442944,-640.79,9.996e-05,2]
[342491664,1731923442953,-227.13,9.996e-05,2]
[342491665,1731923442962,-500.0,9.996e-05,2]
[342491666,1731923442970,-370.02219515,9.996e-05,2]
[342491667,1731923442979,-556.88,9.996e-05,2]
[342491668,1731923442988,-470.86,9.996e-05,2]
[342491669,1731923442998,-500.0,9.996e-05,2]
[342491670,1731923443007,-439.54,9.996e-05,2]
[342491671,1731923443018,-500.0,9.996e-05,2]
[342491672,1731923443028,-500.0,9.996e-05,2]
[342491673,1731923443038,-500.0,9.996e-05,2]
[342491674,1731923443047,-500.0,9.996e-05,2]
[342491675,1731923443055,-500.0,9.996e-05,2]
[342491676,1731923443064,-500.0,9.996e-05,2]
[342491677,1731923443074,-500.0,9.996e-05,2]
[342491678,1731923443083,-500.0,9.996e-05,2]
[342491679,1731923443092,-500.0,9.996e-05,2]
[342491680,1731923443101,-500.0,9.996e-05,2]
[342491681,1731923443114,-500.0,9.996e-05,2]
[342491682,1731923443123,-541.71325549,9.996e-05,2]
[342491683,1731923443133,-204.75,9.996e-05,2]
[342491684,1731923443143,-500.0,9.996e-05,2]
[342491685,1731923443152,-528.84254475,9.996e-05,2]
[342491686,1731923443162,-500.0,9.996e-05,2]
[342491687,1731923443171,-500.0,9.996e-05,2]
[342491688,1731923443181,-500.0,9.996e-05,2]
[342491689,1731923443190,-359.68,9.996e-05,2]
[342491690,1731923443199,-500.0,9.996e-05,2]
[342491691,1731923443208,-500.0,9.996e-05,2]
[342491692,1731923443218,-415.82,9.996e-05,2]
[342491693,1731923443227,-500.0,9.996e-05,2]
[342491694,1731923443236,-500.0,9.996e-05,2]
[342491695,1731923443245,-500.0,9.996e-05,2]
[342491696,1731923443254,-500.0,9.996e-05,2]
[342491697,1731923443263,-500.0,9.996e-05,2]
[342491698,1731923443272,-180.56,9.996e-05,2]
[342491699,1731923443281,-401.01,9.996e-05,2]
[342491700,1731923443290,-500.0,9.996e-05,2]
[342491701,1731923443299,-237.51,9.996e-05,2]
[342491702,1731923443308,-500.0,9.996e-05,2]
[342491703,1731923443317,-500.0,9.996e-05,2]
[342491704,1731923443326,-345.17,9.996e-05,2]
[342491705,1731923443336,-385.09,9.996e-05,2]
[342491706,1731923443345,-500.0,9.996e-05,2]
[342491707,1731923443355,-500.0,9.996e-05,2]
[342491708,1731923443370,-500.0,9.996e-05,2]
[342491709,1731923443381,-326.86,9.996e-05,2]
[342491710,1731923443391,-558.14,9.996e-05,2]
[342491711,1731923443400,-500.0,9.996e-05,2]
[342491712,1731923443410,-275.25,9.996e-05,2]
[342491713,1731923443420,-5480.64422535,9.997e-05,2]
[342491714,1731923443433,-23675.56470712,9.997e-05,2]
[342491715,1731923443449,-5480.64422535,9.997e-05,2]
[342491716,1731923443463,-2385.51001623,9.998e-05,2]
[342491717,1731923443472,-500.0,9.998e-05,2]
[342491718,1731923443483,-1500.0,9.998e-05,2]
[342491719,1731923443492,-500.0,9.998e-05,2]
[342491720,1731923443501,-500.0,9.998e-05,2]
[342491721,1731923443512,-500.0,9.998e-05,2]
[342491722,1731923443521,-500.0,9.998e-05,2]
[342491723,1731923443530,-500.0,9.998e-05,2]
[342491724,1731923443542,-300.02,9.999e-05,2]
[342491725,1731923443551,-7286.48539919,9.999e-05,2]
[342491726,1731923443561,-534.76,9.999e-05,2]
[342491727,1731923443570,-500.0,9.999e-05,2]
[342491728,1731923443579,-500.0,9.999e-05,2]
[342491729,1731923443588,-500.0,9.999e-05,2]
[342491730,1731923443597,-500.0,9.999e-05,2]
[342491731,1731923443606,-500.0,9.999e-05,2]
[342491732,1731923443617,-500.0,9.999e-05,2]
[342491733,1731923443627,-500.0,9.999e-05,2]
[342491734,1731923443636,-229.09,9.999e-05,2]
[342491735,1731923443645,-229.09,9.999e-05,2]
[342491736,1731923443654,-500.0,9.999e-05,2]
[342491737,1731923443663,-229.09,9.999e-05,2]
[342491738,1731923443672,-589.83,9.999e-05,2]
[342491739,1731923443681,-229.09,9.999e-05,2]
[342491740,1731923443691,-229.09,9.999e-05,2]
[342491741,1731923443700,-229.09,9.999e-05,2]
[342491742,1731923443709,-229.09,9.999e-05,2]
[342491743,1731923443718,-229.09,9.999e-05,2]
[342491744,1731923443727,-229.09,9.999e-05,2]
[342491745,1731923443736,-229.09,9.999e-05,2]
[342491746,1731923443745,-229.09,9.999e-05,2]
[342491747,1731923443754,-229.09,9.999e-05,2]
[342491748,1731923443763,-229.09,9.999e-05,2]
[342491749,1731923443772,-229.09,9.999e-05,2]
[342491750,1731923443782,-229.09,9.999e-05,2]
[342491751,1731923443791,-229.09,9.999e-05,2]
[342491752,1731923443800,-229.09,9.999e-05,2]
[342491753,1731923443810,-229.09,9.999e-05,2]
[342491754,1731923443819,-229.09,9.999e-05,2]
[342491755,1731923443828,-229.09,9.999e-05,2]
[342491756,1731923443837,-229.09,9.999e-05,2]
[342491757,1731923443846,-229.22,9.999e-05,2]
[342491758,1731923443855,-500.0,9.999e-05,2]
[342491759,1731923443865,-500.0,9.999e-05,2]
[342491760,1731923443876,-500.0,9.999e-05,2]
[342491761,1731923443885,-500.0,9.999e-05,2]
[342491762,1731923443894,-500.0,9.999e-05,2]
[342491763,1731923443903,-500.0,9.999e-05,2]
[342491764,1731923443912,-316.64684512,9.999e-05,2]
[342491765,1731923443921,-195.19,9.999e-05,2]
[342491766,1731923443930,-470.09,9.999e-05,2]
[342491767,1731923443940,-500.0,9.999e-05,2]
[342491768,1731923443949,-201.9,9.999e-05,2]
[342491769,1731923443958,-170.05,9.999e-05,2]
[342491770,1731923443968,-500.0,9.999e-05,2]
[342491771,1731923443976,-500.0,9.999e-05,2]
[342491772,1731923443986,-500.0,9.999e-05,2]
[342491773,1731923443995,-500.0,9.999e-05,2]
[342491774,1731923444004,-500.0,9.999e-05,2]
[342491775,1731923444014,-500.0,9.999e-05,2]
[342491776,1731923444023,-500.0,9.999e-05,2]
[342491777,1731923444032,-500.0,9.999e-05,2]
[342491778,1731923444043,-500.0,9.999e-05,2]
[342491779,1731923444053,-500.0,9.999e-05,2]
[342491780,1731923444062,-500.0,9.999e-05,2]
[342491781,1731923444071,-500.0,9.999e-05,2]
[342491782,1731923444080,-500.0,9.999e-05,2]
[342491783,1731923444089,-427.40826483,9.999e-05,2]
[342491784,1731923444098,-247.3,9.999e-05,2]
[342491785,1731923444107,-500.0,9.999e-05,2]
[342491786,1731923444116,-500.0,9.999e-05,2]
[342491787,1731923444125,-500.0,9.999e-05,2]
[342491788,1731923444135,-500.0,9.999e-05,2]
[342491789,1731923444144,-500.0,9.999e-05,2]
[342491790,1731923444153,-267.91,9.999e-05,2]
[342491791,1731923444162,-500.0,9.999e-05,2]
[342491792,1731923444171,-452.82,9.999e-05,2]
[342491793,1731923444180,-497.7,9.999e-05,2]
[342491794,1731923444190,-500.0,9.999e-05,2]
[342491795,1731923444199,-261.16,9.999e-05,2]
[342491796,1731923444209,-500.0,9.999e-05,2]
[342491797,1731923444218,-500.0,9.999e-05,2]
[342491798,1731923444228,-500.0,9.999e-05,2]
[342491799,1731923444236,-500.51,9.999e-05,2]
[342491800,1731923444245,-178.54,9.999e-05,2]
[342491801,1731923444255,-500.0,9.999e-05,2]
[342491802,1731923444264,-500.0,9.999e-05,2]
[342491803,1731923444273,-500.0,9.999e-05,2]
[342491804,1731923444282,-625.88,9.999e-05,2]
[342491805,1731923444291,-500.0,9.999e-05,2]
[342491806,1731923444300,-500.0,9.999e-05,2]
[342491807,1731923444310,-500.0,9.999e-05,2]
[342491808,1731923444319,-500.0,9.999e-05,2]
[342491809,1731923444328,-500.0,9.999e-05,2]
[342491810,1731923444337,-500.0,9.999e-05,2]
[342491811,1731923444347,-500.0,9.999e-05,2]
[342491812,1731923444356,-500.0,9.999e-05,2]
[342491813,1731923444367,-500.0,9.999e-05,2]
[342491814,1731923444376,-500.0,9.999e-05,2]
[342491815,1731923444385,-500.0,9.999e-05,2]
[342491816,1731923444395,-500.0,9.999e-05,2]
[342491817,1731923444404,-500.0,9.999e-05,2]
[342491818,1731923444414,-500.0,9.999e-05,2]
[342491819,1731923444423,-500.0,9.999e-05,2]
[342491820,1731923444434,-500.0,9.999e-05,2]
[342491821,1731923444443,-168.76,9.999e-05,2]
[342491822,1731923444453,-500.0,9.999e-05,2]
[342491823,1731923444462,-196.39,9.999e-05,2]
[342491824,1731923444472,-23675.56470712,0.0001,2]
[342491825,1731923444483,-836.0,0.0001,2]
[342491826,1731923444492,-848.99831875,0.0001,2]
[342491827,1731923444501,-54827.04573667,0.0001,2]
[342491828,1731923444516,-4753.05658886,0.0001,2]
[342491829,1731923444527,-5203.0978061,0.0001,2]
[342491830,1731923444544,-282.35,0.0001,2]
[342491831,1731923444557,-78016.30072878,0.0001,2]
[342491832,1731923444570,-5217.75240566,0.0001,2]
[342491833,1731923444579,-19637.68450375,0.0001,2]
[342491834,1731923444588,-126279.26236181,0.0001,2]
[342491838,1731923445403,-203.421,9.989e-05,2]
[342491840,1731923445413,-45757.579,0.0001,2]
[342491841,1731923445568,-2618.418804,0.0001,2]
[342491842,1731923445579,-1329.250002,0.0001,2]
[342491843,1731923445596,-718.5,0.0001,2]
[342491844,1731923445607,-673.92,0.0001,2]
[342491845,1731923445619,-715.55,0.0001,2]
[342491846,1731923445630,-410.69427778,0.0001,2]
[342491847,1731923445642,-807.00001965,0.0001,2]
[342491848,1731923445696,-1214.95495701,0.0001,2]
[342491850,1731923445945,-300.75301768,0.0001,2]
[342491852,1731923497250,500.0,8.22e-05,2]
[342491853,1731923688542,1389.86,8.219e-05,2]
[342491857,1731924141588,-300.0,8.565e-05,2]
[342491858,1731924166743,-500.0,8.566e-05,2]
[342491859,1731924166766,-500.0,8.566e-05,2]
[342491860,1731924166788,-500.0,8.566e-05,2]
[342491861,1731924166810,-500.0,8.566e-05,2]
[342491862,1731924166833,-500.0,8.566e-05,2]
[342491863,1731924166857,-500.0,8.566e-05,2]
[342491864,1731924166881,-500.0,8.566e-05,2]
[342491865,1731924166903,-500.0,8.566e-05,2]
[342491866,1731924166925,-500.0,8.566e-05,2]
[342491867,1731924166947,-29.0,8.566e-05,2]
[342491887,1731924552694,1320.36,8.219e-05,2]
[342491894,1731924631582,-422.69524161,8.566e-05,2]
[342491895,1731924631592,-500.0,8.566e-05,2]
[342491896,1731924631601,-800.0,8.711e-05,2]
[342491897,1731924631611,-250.0,8.713e-05,2]
[342491898,1731924631620,-1000.0,8.713e-05,2]
[342491899,1731924631629,-250.0,8.715e-05,2]
[342491900,1731924631638,-795.41,8.718e-05,2]
[342491901,1731924631647,-1465.03,8.774e-05,2]
[342491902,1731924631656,-1732.32,8.776e-05,2]
[342491903,1731924631666,-300.0,9.559e-05,2]
[342491904,1731924631675,-2997.0,9.56e-05,2]
[342491905,1731924631684,-500.0,9.59e-05,2]
[342491906,1731924631692,-448.57,9.599e-05,2]
[342491907,1731924631703,-200.0,9.6e-05,2]
[342491908,1731924631712,-150.0,9.6e-05,2]
[342491909,1731924631721,-150.0,9.6e-05,2]
[342491910,1731924631730,-724.64,9.6e-05,2]
[342491911,1731924631740,-362.49,9.6e-05,2]
[342491912,1731924631750,-448.57,9.601e-05,2]
[342491913,1731924631759,-448.57,9.604e-05,2]
[342491914,1731924631767,-448.57,9.606e-05,2]
[342491915,1731924631776,-448.57,9.609e-05,2]
[342491916,1731924631785,-448.57,9.611e-05,2]
[342491917,1731924631794,-448.57,9.614e-05,2]
[342491918,1731924631805,-448.57,9.616e-05,2]
[342491919,1731924631816,-448.57,9.619e-05,2]
[342491920,1731924631826,-448.57,9.621e-05,2]
[342491921,1731924631835,-448.57,9.624e-05,2]
[342491922,1731924631844,-448.57,9.626e-05,2]
[342491923,1731924631854,-448.57,9.629e-05,2]
[342491924,1731924631863,-150.0,9.63e-05,2]
[342491925,1731924631872,-448.57,9.631e-05,2]
[342491926,1731924631882,-448.57,9.634e-05,2]
[342491927,1731924631892,-448.57,9.636e-05,2]
[342491928,1731924631902,-448.57,9.639e-05,2]
[342491929,1731924631912,-448.57,9.641e-05,2]
[342491930,1731924631922,-448.57,9.644e-05,2]
[342491931,1731924631931,-448.57,9.646e-05,2]
[342491932,1731924631940,-500.0,9.662e-05,2]
[342491933,1731924631951,-501.21667854,9.662e-05,2]
[342491934,1731924631960,-150.99,9.67e-05,2]
[342491935,1731924631969,-8697.64,9.67e-05,2]
[342491936,1731924631979,-999.99,9.67e-05,2]
[342491937,1731924631988,-601.47,9.67e-05,2]
[342491938,1731924631997,-446.61,9.67e-05,2]
[342491939,1731924632006,-800.0,9.8e-05,2]
[342491940,1731924632015,-26502.3618,9.8e-05,2]
[342491941,1731924632024,-5784.8889,9.8e-05,2]
[342491942,1731924632033,-55799.9608,9.8e-05,2]
[342491943,1731924632042,-1000.0,9.802e-05,2]